Workbook

Sheet Annexe II (hidden)
A1: Annexe II
A2: Montants de référence maximaux – Installation
A3: NOMBRE DE PLACES SUBVENTIONNÉES | B3: MONTANT MAXIMAL ACHAT-CONSTRUCTION
A4: 1 | B4: 667924
A5: 2 | B5: 667924
A6: 3 | B6: 667924
A7: 4 | B7: 667924
A8: 5 | B8: 667924
A9: 6 | B9: 667924
A10: 7 | B10: 667924
A11: 8 | B11: 667924
A12: 9 | B12: 667924
A13: 10 | B13: 667924
A14: 11 | B14: 667924
A15: 12 | B15: 667924
A16: 13 | B16: 667924
A17: 14 | B17: 667924
A18: 15 | B18: 667924
A19: 16 | B19: 667924
A20: 17 | B20: 667924
A21: 18 | B21: 667924
A22: 19 | B22: 667924
A23: 20 | B23: 689973
A24: 21 | B24: 712027
A25: 22 | B25: 734077
A26: 23 | B26: 756131
A27: 24 | B27: 778189
A28: 25 | B28: 800235
A29: 26 | B29: 822290
A30: 27 | B30: 844342
A31: 28 | B31: 866395
A32: 29 | B32: 888453
A33: 30 | B33: 910501
A34: 31 | B34: 932554
A35: 32 | B35: 954606
A36: 33 | B36: 976657
A37: 34 | B37: 998716
A38: 35 | B38: 1020772
A39: 36 | B39: 1042821
A40: 37 | B40: 1064876
A41: 38 | B41: 1086925
A42: 39 | B42: 1108980
A43: 40 | B43: 1152863
A44: 41 | B44: 1174918
A45: 42 | B45: 1196972
A46: 43 | B46: 1219020
A47: 44 | B47: 1241073
A48: 45 | B48: 1263129
A49: 46 | B49: 1285185
A50: 47 | B50: 1307240
A51: 48 | B51: 1329291
A52: 49 | B52: 1351344
A53: 50 | B53: 1373391
A54: 51 | B54: 1395451
A55: 52 | B55: 1417502
A56: 53 | B56: 1439557
A57: 54 | B57: 1461610
A58: 55 | B58: 1505495
A59: 56 | B59: 1527548
A60: 57 | B60: 1549603
A61: 58 | B61: 1571652
A62: 59 | B62: 1593705
A63: 60 | B63: 1615761
A64: 61 | B64: 1637808
A65: 62 | B65: 1659863
A66: 63 | B66: 1681919
A67: 64 | B67: 1703970
A68: 65 | B68: 1726025
A69: 66 | B69: 1748074
A70: 67 | B70: 1770131
A71: 68 | B71: 1792183
A72: 69 | B72: 1814233
A73: 70 | B73: 1858127
A74: 71 | B74: 1880176
A75: 72 | B75: 1902233
A76: 73 | B76: 1924284
A77: 74 | B77: 1946338
A78: 75 | B78: 1968388
A79: 76 | B79: 1990442
A80: 77 | B80: 2012493
A81: 78 | B81: 2034548
A82: 79 | B82: 2056600
A83: 80 | B83: 2078652
A84: 81 | B84: 2100704
A85: 82 | B85: 2122757
A86: 83 | B86: 2144810
A87: 84 | B87: 2166863
A88: 85 | B88: 2188916
A89: 86 | B89: 2210968
A90: 87 | B90: 2233021
A91: 88 | B91: 2255074
A92: 89 | B92: 2277127
A93: 90 | B93: 2299180
A94: 91 | B94: 2321232
A95: 92 | B95: 2343285
A96: 93 | B96: 2365338
A97: 94 | B97: 2387391
A98: 95 | B98: 2409444
A99: 96 | B99: 2431496
A100: 97 | B100: 2453549
A101: 98 | B101: 2475602
A102: 99 | B102: 2497655
A103: 100 | B103: 2519708

Sheet Annexe III (hidden)
A1: Annexe III
A2: Montants de référence maximaux – Salle multifonctionnelle
A3: NOMBRE DE PLACES SUBVENTIONNEES | B3: MONTANT MAXIMAL POUR UNE SALLE MULTIFONCTIONNELLE
A4: 1 | B4: 95362
A5: 2 | B5: 95362
A6: 3 | B6: 95362
A7: 4 | B7: 95362
A8: 5 | B8: 95362
A9: 6 | B9: 95362
A10: 7 | B10: 95362
A11: 8 | B11: 95362
A12: 9 | B12: 95362
A13: 10 | B13: 95362
A14: 11 | B14: 95362
A15: 12 | B15: 95362
A16: 13 | B16: 95362
A17: 14 | B17: 95362
A18: 15 | B18: 95362
A19: 16 | B19: 95362
A20: 17 | B20: 95362
A21: 18 | B21: 95362
A22: 19 | B22: 95362
A23: 20 | B23: 127143
A24: 21 | B24: 127143
A25: 22 | B25: 127143
A26: 23 | B26: 127143
A27: 24 | B27: 127143
A28: 25 | B28: 127143
A29: 26 | B29: 127143
A30: 27 | B30: 127143
A31: 28 | B31: 127143
A32: 29 | B32: 127143
A33: 30 | B33: 127143
A34: 31 | B34: 127143
A35: 32 | B35: 127143
A36: 33 | B36: 127143
A37: 34 | B37: 127143
A38: 35 | B38: 127143
A39: 36 | B39: 127143
A40: 37 | B40: 127143
A41: 38 | B41: 127143
A42: 39 | B42: 127143
A43: 40 | B43: 158935
A44: 41 | B44: 158935
A45: 42 | B45: 158935
A46: 43 | B46: 158935
A47: 44 | B47: 158935
A48: 45 | B48: 158935
A49: 46 | B49: 158935
A50: 47 | B50: 158935
A51: 48 | B51: 158935
A52: 49 | B52: 158935
A53: 50 | B53: 158935
A54: 51 | B54: 158935
A55: 52 | B55: 158935
A56: 53 | B56: 158935
A57: 54 | B57: 158935
A58: 55 | B58: 158935
A59: 56 | B59: 158935
A60: 57 | B60: 158935
A61: 58 | B61: 158935
A62: 59 | B62: 158935
A63: 60 | B63: 164022
A64: 61 | B64: 164022
A65: 62 | B65: 164022
A66: 63 | B66: 164022
A67: 64 | B67: 164022
A68: 65 | B68: 177691
A69: 66 | B69: 177691
A70: 67 | B70: 177691
A71: 68 | B71: 177691
A72: 69 | B72: 177691
A73: 70 | B73: 191358
A74: 71 | B74: 191358
A75: 72 | B75: 191358
A76: 73 | B76: 191358
A77: 74 | B77: 191358
A78: 75 | B78: 205030
A79: 76 | B79: 205030
A80: 77 | B80: 205030
A81: 78 | B81: 205030
A82: 79 | B82: 205030
A83: 80 | B83: 218696
A84: 81 | B84: 218696
A85: 82 | B85: 218696
A86: 83 | B86: 218696
A87: 84 | B87: 218696
A88: 85 | B88: 232363
A89: 86 | B89: 232363
A90: 87 | B90: 232363
A91: 88 | B91: 232363
A92: 89 | B92: 232363
A93: 90 | B93: 246030
A94: 91 | B94: 246030
A95: 92 | B95: 246030
A96: 93 | B96: 246030
A97: 94 | B97: 246030
A98: 95 | B98: 259696
A99: 96 | B99: 259696
A100: 97 | B100: 259696
A101: 98 | B101: 259696
A102: 99 | B102: 259696
A103: 100 | B103: 273363

Sheet Annexe IV (hidden)
A1: Annexe IV
A2: Indices régionaux de modulation
A3: Région administrative | B3: INDICE
A4: Abitibi-Témiscamingue | B4: 1.15
A5: Bas-Saint-Laurent | B5: 1.05
A6: Capitale-Nationale | B6: 1
A7: Centre-du-Québec | B7: 1
A8: Chaudière-Appalaches | B8: 1
A9: Côte-Nord - Est de Pointe-Parent et Schefferville | B9: 2
A10: Côte-Nord - Rivière Moisie à Pointe-Parent et Fermont | B10: 1.6
A11: Côte-Nord - Rivière Saguenay à rivière Moisie | B11: 1.25
A12: Estrie | B12: 1
A13: Gaspésie | B13: 1.1
A14: Gaspésie - Îles-de-la-Madeleine | B14: 1.6
A15: Lanaudière | B15: 1
A16: Laurentides - MRC d’Antoine-Labelle | B16: 1.12
A17: Laurentides - Sauf la MRC d’Antoine-Labelle | B17: 1
A18: Laval | B18: 1
A19: Mauricie - Région de La Tuque | B19: 1.05
A20: Mauricie - Sauf la région de La Tuque | B20: 1
A21: Montérégie | B21: 1
A22: Montréal | B22: 1
A23: Nord-du-Québec - Région de Chibougamau | B23: 1.25
A24: Nord-du-Québec - Région du Nunavik | B24: 4
A25: Nord-du-Québec - Sauf les régions de Chibougamau et du Nunavik | B25: 1.6
A26: Outaouais | B26: 1.12
A27: Saguenay–Lac-Saint-Jean | B27: 1.05

Sheet Superficie (hidden)
A1: Estimation superficie
A2: Nombre de places en installation (0-59 mois) | B2: Superficie pieds2 | C2: Superficies Salle Multi pieds2 | D2: Superficie pieds2 0-18 mois
A3: 0 | B3: 0 | C3: 0 | D3: 0
A4: 1 | B4: ='Annexe II'!B4/318 -> 2100.389937 | C4: ='Annexe III'!B4/318 -> 299.8805031 | D4: =A4*25.84 -> 25.84
A5: 2 | B5: ='Annexe II'!B5/318 -> 2100.389937 | C5: ='Annexe III'!B5/318 -> 299.8805031 | D5: =A5*25.84 -> 51.68
A6: 3 | B6: ='Annexe II'!B6/318 -> 2100.389937 | C6: ='Annexe III'!B6/318 -> 299.8805031 | D6: 77.52
A7: 4 | B7: ='Annexe II'!B7/318 -> 2100.389937 | C7: ='Annexe III'!B7/318 -> 299.8805031 | D7: 103.36
A8: 5 | B8: ='Annexe II'!B8/318 -> 2100.389937 | C8: ='Annexe III'!B8/318 -> 299.8805031 | D8: 129.2
A9: 6 | B9: ='Annexe II'!B9/318 -> 2100.389937 | C9: ='Annexe III'!B9/318 -> 299.8805031 | D9: 155.04
A10: 7 | B10: ='Annexe II'!B10/318 -> 2100.389937 | C10: ='Annexe III'!B10/318 -> 299.8805031 | D10: 180.88
A11: 8 | B11: ='Annexe II'!B11/318 -> 2100.389937 | C11: ='Annexe III'!B11/318 -> 299.8805031 | D11: 206.72
A12: 9 | B12: ='Annexe II'!B12/318 -> 2100.389937 | C12: ='Annexe III'!B12/318 -> 299.8805031 | D12: 232.56
A13: 10 | B13: ='Annexe II'!B13/318 -> 2100.389937 | C13: ='Annexe III'!B13/318 -> 299.8805031 | D13: 258.4
A14: 11 | B14: ='Annexe II'!B14/318 -> 2100.389937 | C14: ='Annexe III'!B14/318 -> 299.8805031 | D14: 284.24
A15: 12 | B15: ='Annexe II'!B15/318 -> 2100.389937 | C15: ='Annexe III'!B15/318 -> 299.8805031 | D15: 310.08
A16: 13 | B16: ='Annexe II'!B16/318 -> 2100.389937 | C16: ='Annexe III'!B16/318 -> 299.8805031 | D16: 335.92
A17: 14 | B17: ='Annexe II'!B17/318 -> 2100.389937 | C17: ='Annexe III'!B17/318 -> 299.8805031 | D17: 361.76
A18: 15 | B18: ='Annexe II'!B18/318 -> 2100.389937 | C18: ='Annexe III'!B18/318 -> 299.8805031 | D18: 387.6
A19: 16 | B19: ='Annexe II'!B19/318 -> 2100.389937 | C19: ='Annexe III'!B19/318 -> 299.8805031 | D19: 413.44
A20: 17 | B20: ='Annexe II'!B20/318 -> 2100.389937 | C20: ='Annexe III'!B20/318 -> 299.8805031 | D20: 439.28
A21: 18 | B21: ='Annexe II'!B21/318 -> 2100.389937 | C21: ='Annexe III'!B21/318 -> 299.8805031 | D21: 465.12
A22: 19 | B22: ='Annexe II'!B22/318 -> 2100.389937 | C22: ='Annexe III'!B22/318 -> 299.8805031 | D22: 490.96
A23: 20 | B23: ='Annexe II'!B23/318 -> 2169.726415 | C23: ='Annexe III'!B23/318 -> 399.8207547 | D23: 516.8
A24: 21 | B24: ='Annexe II'!B24/318 -> 2239.078616 | C24: ='Annexe III'!B24/318 -> 399.8207547 | D24: 542.64
A25: 22 | B25: ='Annexe II'!B25/318 -> 2308.418239 | C25: ='Annexe III'!B25/318 -> 399.8207547 | D25: 568.48
A26: 23 | B26: ='Annexe II'!B26/318 -> 2377.77044 | C26: ='Annexe III'!B26/318 -> 399.8207547 | D26: 594.32
A27: 24 | B27: ='Annexe II'!B27/318 -> 2447.13522 | C27: ='Annexe III'!B27/318 -> 399.8207547 | D27: 620.16
A28: 25 | B28: ='Annexe II'!B28/318 -> 2516.462264 | C28: ='Annexe III'!B28/318 -> 399.8207547 | D28: 646
A29: 26 | B29: ='Annexe II'!B29/318 -> 2585.81761 | C29: ='Annexe III'!B29/318 -> 399.8207547 | D29: 671.84
A30: 27 | B30: ='Annexe II'!B30/318 -> 2655.163522 | C30: ='Annexe III'!B30/318 -> 399.8207547 | D30: 697.68
A31: 28 | B31: ='Annexe II'!B31/318 -> 2724.512579 | C31: ='Annexe III'!B31/318 -> 399.8207547 | D31: 723.52
A32: 29 | B32: ='Annexe II'!B32/318 -> 2793.877358 | C32: ='Annexe III'!B32/318 -> 399.8207547 | D32: 749.36
A33: 30 | B33: ='Annexe II'!B33/318 -> 2863.210692 | C33: ='Annexe III'!B33/318 -> 399.8207547 | D33: 775.2
A34: 31 | B34: ='Annexe II'!B34/318 -> 2932.559748 | C34: ='Annexe III'!B34/318 -> 399.8207547 | D34: 801.04
A35: 32 | B35: ='Annexe II'!B35/318 -> 3001.90566 | C35: ='Annexe III'!B35/318 -> 399.8207547 | D35: 826.88
A36: 33 | B36: ='Annexe II'!B36/318 -> 3071.248428 | C36: ='Annexe III'!B36/318 -> 399.8207547 | D36: 852.72
A37: 34 | B37: ='Annexe II'!B37/318 -> 3140.616352 | C37: ='Annexe III'!B37/318 -> 399.8207547 | D37: 878.56
A38: 35 | B38: ='Annexe II'!B38/318 -> 3209.974843 | C38: ='Annexe III'!B38/318 -> 399.8207547 | D38: 904.4
A39: 36 | B39: ='Annexe II'!B39/318 -> 3279.311321 | C39: ='Annexe III'!B39/318 -> 399.8207547 | D39: 930.24
A40: 37 | B40: ='Annexe II'!B40/318 -> 3348.666667 | C40: ='Annexe III'!B40/318 -> 399.8207547 | D40: 956.08
A41: 38 | B41: ='Annexe II'!B41/318 -> 3418.003145 | C41: ='Annexe III'!B41/318 -> 399.8207547 | D41: 981.92
A42: 39 | B42: ='Annexe II'!B42/318 -> 3487.358491 | C42: ='Annexe III'!B42/318 -> 399.8207547 | D42: 1007.76
A43: 40 | B43: ='Annexe II'!B43/318 -> 3625.355346 | C43: ='Annexe III'!B43/318 -> 499.7955975 | D43: 1033.6
A44: 41 | B44: ='Annexe II'!B44/318 -> 3694.710692 | C44: ='Annexe III'!B44/318 -> 499.7955975 | D44: 1059.44
A45: 42 | B45: ='Annexe II'!B45/318 -> 3764.062893 | C45: ='Annexe III'!B45/318 -> 499.7955975 | D45: 1085.28
A46: 43 | B46: ='Annexe II'!B46/318 -> 3833.396226 | C46: ='Annexe III'!B46/318 -> 499.7955975 | D46: 1111.12
A47: 44 | B47: ='Annexe II'!B47/318 -> 3902.745283 | C47: ='Annexe III'!B47/318 -> 499.7955975 | D47: 1136.96
A48: 45 | B48: ='Annexe II'!B48/318 -> 3972.103774 | C48: ='Annexe III'!B48/318 -> 499.7955975 | D48: 1162.8
A49: 46 | B49: ='Annexe II'!B49/318 -> 4041.462264 | C49: ='Annexe III'!B49/318 -> 499.7955975 | D49: 1188.64
A50: 47 | B50: ='Annexe II'!B50/318 -> 4110.81761 | C50: ='Annexe III'!B50/318 -> 499.7955975 | D50: 1214.48
A51: 48 | B51: ='Annexe II'!B51/318 -> 4180.160377 | C51: ='Annexe III'!B51/318 -> 499.7955975 | D51: 1240.32
A52: 49 | B52: ='Annexe II'!B52/318 -> 4249.509434 | C52: ='Annexe III'!B52/318 -> 499.7955975 | D52: 1266.16
A53: 50 | B53: ='Annexe II'!B53/318 -> 4318.839623 | C53: ='Annexe III'!B53/318 -> 499.7955975 | D53: 1292
A54: 51 | B54: ='Annexe II'!B54/318 -> 4388.210692 | C54: ='Annexe III'!B54/318 -> 499.7955975 | D54: 1317.84
A55: 52 | B55: ='Annexe II'!B55/318 -> 4457.553459 | C55: ='Annexe III'!B55/318 -> 499.7955975 | D55: 1343.68
A56: 53 | B56: ='Annexe II'!B56/318 -> 4526.908805 | C56: ='Annexe III'!B56/318 -> 499.7955975 | D56: 1369.52
A57: 54 | B57: ='Annexe II'!B57/318 -> 4596.257862 | C57: ='Annexe III'!B57/318 -> 499.7955975 | D57: 1395.36
A58: 55 | B58: ='Annexe II'!B58/318 -> 4734.261006 | C58: ='Annexe III'!B58/318 -> 499.7955975 | D58: 1421.2
A59: 56 | B59: ='Annexe II'!B59/318 -> 4803.610063 | C59: ='Annexe III'!B59/318 -> 499.7955975 | D59: 1447.04
A60: 57 | B60: ='Annexe II'!B60/318 -> 4872.965409 | C60: ='Annexe III'!B60/318 -> 499.7955975 | D60: 1472.88
A61: 58 | B61: ='Annexe II'!B61/318 -> 4942.301887 | C61: ='Annexe III'!B61/318 -> 499.7955975 | D61: 1498.72
A62: 59 | B62: ='Annexe II'!B62/318 -> 5011.650943 | C62: ='Annexe III'!B62/318 -> 499.7955975 | D62: 1524.56
A63: 60 | B63: ='Annexe II'!B63/318 -> 5081.009434 | C63: ='Annexe III'!B63/318 -> 515.7924528 | D63: 1550.4
A64: 61 | B64: ='Annexe II'!B64/318 -> 5150.339623 | C64: ='Annexe III'!B64/318 -> 515.7924528 | D64: 1576.24
A65: 62 | B65: ='Annexe II'!B65/318 -> 5219.694969 | C65: ='Annexe III'!B65/318 -> 515.7924528 | D65: 1602.08
A66: 63 | B66: ='Annexe II'!B66/318 -> 5289.053459 | C66: ='Annexe III'!B66/318 -> 515.7924528 | D66: 1627.92
A67: 64 | B67: ='Annexe II'!B67/318 -> 5358.396226 | C67: ='Annexe III'!B67/318 -> 515.7924528 | D67: 1653.76
A68: 65 | B68: ='Annexe II'!B68/318 -> 5427.751572 | C68: ='Annexe III'!B68/318 -> 558.7767296 | D68: 1679.6
A69: 66 | B69: ='Annexe II'!B69/318 -> 5497.08805 | C69: ='Annexe III'!B69/318 -> 558.7767296 | D69: =A69*25.84 -> 1705.44
A70: 67 | B70: ='Annexe II'!B70/318 -> 5566.449686 | C70: ='Annexe III'!B70/318 -> 558.7767296 | D70: 1731.28
A71: 68 | B71: ='Annexe II'!B71/318 -> 5635.795597 | C71: ='Annexe III'!B71/318 -> 558.7767296 | D71: 1757.12
A72: 69 | B72: ='Annexe II'!B72/318 -> 5705.13522 | C72: ='Annexe III'!B72/318 -> 558.7767296 | D72: 1782.96
A73: 70 | B73: ='Annexe II'!B73/318 -> 5843.166667 | C73: ='Annexe III'!B73/318 -> 601.754717 | D73: 1808.8
A74: 71 | B74: ='Annexe II'!B74/318 -> 5912.503145 | C74: ='Annexe III'!B74/318 -> 601.754717 | D74: 1834.64
A75: 72 | B75: ='Annexe II'!B75/318 -> 5981.86478 | C75: ='Annexe III'!B75/318 -> 601.754717 | D75: 1860.48
A76: 73 | B76: ='Annexe II'!B76/318 -> 6051.207547 | C76: ='Annexe III'!B76/318 -> 601.754717 | D76: 1886.32
A77: 74 | B77: ='Annexe II'!B77/318 -> 6120.559748 | C77: ='Annexe III'!B77/318 -> 601.754717 | D77: 1912.16
A78: 75 | B78: ='Annexe II'!B78/318 -> 6189.899371 | C78: ='Annexe III'!B78/318 -> 644.7484277 | D78: 1938
A79: 76 | B79: ='Annexe II'!B79/318 -> 6259.251572 | C79: ='Annexe III'!B79/318 -> 644.7484277 | D79: 1963.84
A80: 77 | B80: ='Annexe II'!B80/318 -> 6328.59434 | C80: ='Annexe III'!B80/318 -> 644.7484277 | D80: 1989.68
A81: 78 | B81: ='Annexe II'!B81/318 -> 6397.949686 | C81: ='Annexe III'!B81/318 -> 644.7484277 | D81: 2015.52
A82: 79 | B82: ='Annexe II'!B82/318 -> 6467.295597 | C82: ='Annexe III'!B82/318 -> 644.7484277 | D82: 2041.36
A83: 80 | B83: ='Annexe II'!B83/318 -> 6536.641509 | C83: ='Annexe III'!B83/318 -> 687.7232704 | D83: 2067.2
A84: 81 | B84: ='Annexe II'!B84/318 -> 6605.987421 | C84: ='Annexe III'!B84/318 -> 687.7232704 | D84: 2093.04
A85: 82 | B85: ='Annexe II'!B85/318 -> 6675.336478 | C85: ='Annexe III'!B85/318 -> 687.7232704 | D85: 2118.88
A86: 83 | B86: ='Annexe II'!B86/318 -> 6744.685535 | C86: ='Annexe III'!B86/318 -> 687.7232704 | D86: 2144.72
A87: 84 | B87: ='Annexe II'!B87/318 -> 6814.034591 | C87: ='Annexe III'!B87/318 -> 687.7232704 | D87: 2170.56
A88: 85 | B88: ='Annexe II'!B88/318 -> 6883.383648 | C88: ='Annexe III'!B88/318 -> 730.7012579 | D88: 2196.4
A89: 86 | B89: ='Annexe II'!B89/318 -> 6952.72956 | C89: ='Annexe III'!B89/318 -> 730.7012579 | D89: 2222.24
A90: 87 | B90: ='Annexe II'!B90/318 -> 7022.078616 | C90: ='Annexe III'!B90/318 -> 730.7012579 | D90: 2248.08
A91: 88 | B91: ='Annexe II'!B91/318 -> 7091.427673 | C91: ='Annexe III'!B91/318 -> 730.7012579 | D91: 2273.92
A92: 89 | B92: ='Annexe II'!B92/318 -> 7160.77673 | C92: ='Annexe III'!B92/318 -> 730.7012579 | D92: 2299.76
A93: 90 | B93: ='Annexe II'!B93/318 -> 7230.125786 | C93: ='Annexe III'!B93/318 -> 773.6792453 | D93: 2325.6
A94: 91 | B94: ='Annexe II'!B94/318 -> 7299.471698 | C94: ='Annexe III'!B94/318 -> 773.6792453 | D94: 2351.44
A95: 92 | B95: ='Annexe II'!B95/318 -> 7368.820755 | C95: ='Annexe III'!B95/318 -> 773.6792453 | D95: 2377.28
A96: 93 | B96: ='Annexe II'!B96/318 -> 7438.169811 | C96: ='Annexe III'!B96/318 -> 773.6792453 | D96: 2403.12
A97: 94 | B97: ='Annexe II'!B97/318 -> 7507.518868 | C97: ='Annexe III'!B97/318 -> 773.6792453 | D97: 2428.96
A98: 95 | B98: ='Annexe II'!B98/318 -> 7576.867925 | C98: ='Annexe III'!B98/318 -> 816.6540881 | D98: 2454.8
A99: 96 | B99: ='Annexe II'!B99/318 -> 7646.213836 | C99: ='Annexe III'!B99/318 -> 816.6540881 | D99: 2480.64
A100: 97 | B100: ='Annexe II'!B100/318 -> 7715.562893 | C100: ='Annexe III'!B100/318 -> 816.6540881 | D100: 2506.48
A101: 98 | B101: ='Annexe II'!B101/318 -> 7784.91195 | C101: ='Annexe III'!B101/318 -> 816.6540881 | D101: 2532.32
A102: 99 | B102: ='Annexe II'!B102/318 -> 7854.261006 | C102: ='Annexe III'!B102/318 -> 816.6540881 | D102: 2558.16
A103: 100 | B103: ='Annexe II'!B103/318 -> 7923.610063 | C103: ='Annexe III'!B103/318 -> 859.6320755 | D103: 2584

Sheet Calcul env. achat-construction
A1: Financement achat construction - acquisition
A2: Insérer dans l'espace en vert votre nombre de places totales, votre nombre de places poupons ainsi que votre région et le calcul se fera automatiquement.
A3: Exemple fait pour un CPE de 80 places, dont 15 poupons, comprenant une salle multifonctionnelle, situé dans le Bas-Saint-Laurent
A5: Nombre de places totales | B5: 52
A6: Nombre de place 18 mois ou moins (poupons) | B6: 10
A7: Région | B7: Montréal
A8: Salle multifonctionnelle | B8: oui
A9: Montant de base | B9: =VLOOKUP('Calcul env. achat-construction'!B5,'Annexe II'!A4:B103,2,FALSE) -> 1417502
A10: Montant poupon | B10: =B6*8219 -> 82190
A11: Salle multifonctionnelle | B11: =VLOOKUP(B5,'Annexe III'!A4:B103,2,FALSE) -> 158935
A12: Sous-total avant indice régional de modulation | B12: =IF(B8="oui",B9+B10+B11,B9+B10) -> 1658627
A14: Indice régional de modulation | B14: =VLOOKUP(B7,'Annexe IV'!A4:B27,2,FALSE) -> 1
A16: Enveloppe maximale achat construction | B16: =B12*B14 -> 1658627
A18: Enveloppe aménagement extérieur | B18: =0.07*B16 -> 116103.89
A20: Enveloppe honoraires professionnels | B20: =_xlfn.IFS((B16+B18)<300000,(B16+B18)*0.09,(B16+B18)<600000,27000+(((B16+B18)-300000)*0.072),(B16+B18)<1250000,48600+(((B16+B18)-600000)*0.063),(B16+B18)>1250000,89550+(((B16+B18)-1250000)*0.0576)) -> 119774.4993
A22: Enveloppe chargé projet | B22: =_xlfn.IFS((B16+B18)<750000,(B16+B18)*0.03,(B16+B18)<1500000,22500+(((B16+B18)-750000)*0.02),(B16+B18)>1500000,37500+(((B16+B18)-1500000)*0.015)) -> 41620.96335
A24: Enveloppe mobilier-équipement | B24: =_xlfn.IFS(B5<41,(B5*918)+27588+(B6*918),B5>40,(B5*918)+55179+(B6*918)) -> 112095
A26: Enveloppe jeux extérieurs | B26: =B5*735 -> 38220
A28: Enveloppe intégration des Arts à l'architecture | B28: Si projet égal ou supérieur à 150 000$
A30: Enveloppe achat de terrain | B30: Selon opportunités
A32: Enveloppe spécifique exceptionnelle | B32: Exigences peu communes émanant d'autorités compétentes, telle une municipalité
A34: Enveloppe totale préliminaire | B34: =B16+B18+B20+B22+B24+B26 -> 2086441.353
A36: Superficie pi2 AVEC salle multi | B36: =SUM(VLOOKUP('Calcul env. achat-construction'!B5,Superficie!A3:D103,2,FALSE),VLOOKUP('Calcul env. achat-construction'!B6,Superficie!A3:D103,4,FALSE),VLOOKUP('Calcul env. achat-construction'!B5,Superficie!A3:D103,3,FALSE)) -> 5215.749057
A38: Superficie pi2 SANS salle multi | B38: =SUM(VLOOKUP('Calcul env. achat-construction'!B5,Superficie!A3:D103,2,FALSE),VLOOKUP('Calcul env. achat-construction'!B6,Superficie!A3:D103,4,FALSE)) -> 4715.953459
A40: Superficie minimum aire de jeu extérieur pi2 | B40: =0.333*(43.0556*B5) -> 745.5507696
A42: Superficie recommandée par AQCPE aire de jeu extérieur pi2 | B42: =B40*3 -> 2236.652309

Sheet Mobilier (hidden)
A2: Mobiliers | B2: Qn | C2: Coût | D2: Total | F2: Aménagement extérieur | G2: Qn enfants | I2: Total
A3: Lit poupon | B3: ='Calcul env. achat-construction'!B6 -> 10 | C3: 550 | D3: =B3*C3 -> 5500 | F3: Sationnement | G3: ='Calcul env. achat-construction'!B5 -> 52 | H3: 1225 | I3: =G3*H3 -> 63700
A4: Chaises hautes | B4: ='Calcul env. achat-construction'!B6 -> 10 | C4: 350 | D4: =B4*C4 -> 3500 | F4: Aménagement paysager | G4: ='Calcul env. achat-construction'!B5 -> 52 | H4: 155 | I4: =G4*H4 -> 8060
A5: Tables | B5: =('Calcul env. achat-construction'!B5-'Calcul env. achat-construction'!B6)/4 -> 10.5 | C5: 350 | D5: =B5*C5 -> 3675 | F5: Gazon | G5: ='Calcul env. achat-construction'!B5 -> 52 | H5: 250 | I5: 13000
A6: Chaises | B6: ='Calcul env. achat-construction'!B5-'Calcul env. achat-construction'!B6 -> 42 | C6: 150 | D6: =B6*C6 -> 6300 | F6: Clôture | G6: ='Calcul env. achat-construction'!B5 -> 52 | H6: 300 | I6: 15600
A7: Tables perso et chaises | B7: 1 | C7: 1500 | D7: =B7*C7 -> 1500 | F7: TOTAL AMÉNAGEMENT EXTÉRIEUR | H7: =SUM(H3:H6) -> 1930 | I7: =SUM(I3:I6) -> 100360
A8: TOTAL ÉQUIPEMENT MEUBLE | D8: =SUM(D3:D7) -> 20475
A10: Buanderie
A11: Laveuse | B11: 1 | C11: 1500 | D11: =C11*B11 -> 1500
A12: Sécheuse | B12: 1 | C12: 1500 | D12: =C12*B12 -> 1500
A13: Cuisine
A14: Hotte | B14: 1 | C14: 5000 | D14: =B14*C14 -> 5000
A15: Frigo | B15: 1 | C15: 6000 | D15: =B15*C15 -> 6000
A16: Congélo | B16: 1 | C16: 6000 | D16: =B16*C16 -> 6000
A17: Cuisinière | B17: 1 | C17: 5000 | D17: =B17*C17 -> 5000
A18: Lave-vaisselle | B18: 1 | C18: 5000 | D18: =B18*C18 -> 5000
A19: TOTAL CUISINE BUANDERIE | D19: =SUM(D10:D18) -> 30000
A21: Bureaux et chaises | B21: 1 | C21: 1250 | D21: =C21*B21 -> 1250
A22: TOTAL ÉQUIPEMENT BUREAU | D22: =SUM(D21:D21) -> 1250
A24: Ordinateur | B24: 1 | C24: 1250 | D24: =C24*B24 -> 1250
A25: Imprimante | B25: 1 | C25: 1250 | D25: =C25*B25 -> 1250
A26: TOTAL MATÉRIEL INFORMATIQUE | D26: =SUM(D24:D25) -> 2500
A28: Matériel éducatif | B28: ='Calcul env. achat-construction'!B5 -> 52 | C28: 425 | D28: =C28*B28 -> 22100
A29: TOTAL MATÉRIEL ÉDUCATIF | D29: =SUM(D28:D28) -> 22100
A31: Jouets | B31: ='Calcul env. achat-construction'!B5 -> 52 | C31: 400 | D31: =C31*B31 -> 20800
A32: TOTAL JOUETS | D32: =D31 -> 20800

Sheet Budget d'implantation (hidden)
F2: Date de préparation:
G3: Préparé par:
C5: BUDGET D'IMPLANTATION PFI
A7: Type de projet: | C7: Achat terrain pour installation d'un préfabriqué | H7: R/B:
A8: Nom du CPE :
A9: No de division : | G9: Nombre de places 0-17 mois : | I9: ='Calcul env. achat-construction'!B6 -> 10
A10: No d'installation : | G10: Nombre de places 18-59 mois : | I10: ='Calcul env. achat-construction'!B5-'Calcul env. achat-construction'!B6 -> 42
A11: Dimension installation (en m2): | G11: Date d'ouverture :
A12: Dimension salle multi (en m2):
F15: Coûts avant taxes | G15: Taxes (100%) 1 | H15: Total + 100 % des taxes | I15: Coûts + 50% des taxes
G17: TPS | H17: 0.05
G18: TVQ | H18: 0.09975
A20: Achat - construction
C21: Enveloppe Achat-Construction | I21: ='Calcul env. achat-construction'!B16 -> 1658627
B22: Plus: | C22: Enveloppe Spécifique Exceptionelle, si applicable
B23: + ou - | C23: Transfert d'enveloppe (provenant ou vers)
B24: Moins: | C24: Mise de fonds, si applicable
C25: Totale de l'enveloppe maximum admissible (A) | I25: =SUM(I21:I24) -> 1658627
C27: Coûts de construction budgétés (B) | I27: =I43 -> 0
C29: Enveloppe reconnue Achat-Construction (minimum entre A et B) | I29: =MIN(I25,I27) -> 0
B32: Coût de construction ou d'agrandissement | G32: =(F32*TPS)+(F32*TVQ) -> 0 | H32: =(F32+G32) -> 0 | I32: =ROUND(F32+(G32/2),2) -> 0
B33: Branchement temporaire aux services publics | G33: 0 | H33: =(F33+G33) -> 0 | I33: =ROUND(F33+(G33/2),2) -> 0
B34: Aménagement de voies de circulation temporaire | G34: 0 | H34: 0 | I34: 0
B35: Permis de construction | G35: 0 | H35: 0 | I35: 0
B36: Assurances exigées pour les travaux | G36: 0 | H36: 0 | I36: 0
B37: Achat d'un bâtiment | G37: 0 | H37: 0 | I37: 0
B38: Amélioration locative | G38: 0 | H38: 0 | I38: 0
B39: Rénovation ou réaménagement | G39: 0 | H39: 0 | I39: 0
B40: Autres (préciser) : | G40: 0 | H40: 0 | I40: 0
B41: Autres (préciser) : | G41: =(F41*TPS)+(F41*TVQ) -> 0 | H41: 0 | I41: 0
B42: Autres (préciser) : | C42: Contingences | G42: 0 | H42: 0 | I42: 0
A43: Total – Achat - construction | G43: =SUM(G32:G42) -> 0 | H43: =SUM(H32:H42) -> 0 | I43: =SUM(I32:I42) -> 0
H44: Dépassement | I44: =I25-I43 -> 1658627
A47: Mobilier et Équipement
C48: Enveloppe Mobilier et Équipement | I48: ='Calcul env. achat-construction'!B24 -> 112095
B49: Plus: | C49: Enveloppe Spécifique Exceptionelle, si applicable
B50: + ou - | C50: Transfert d'enveloppe (provenant ou vers)
B51: Moins: | C51: Mise de fonds, si applicable
C52: Totale de l'enveloppe maximum admissible (A) | I52: =SUM(I48:I51) -> 112095
C54: Coûts de construction budgétés (B) | I54: =I67 -> 104397.24
C56: Enveloppe reconnue Mobilier et Équipement (minimum entre A et B) | I56: =MIN(I52,I54) -> 104397.24
B59: Équipements meubles | F59: =Mobilier!D8 -> 20475 | G59: =(F59*TPS)+(F59*TVQ) -> 3066.13125 | H59: =(F59+G59) -> 23541.13125 | I59: =ROUND(F59+(G59/2),2) -> 22008.07
B60: Équipements de cuisine ou de buanderie | F60: =Mobilier!D19 -> 30000 | G60: 4492.5 | H60: =(F60+G60) -> 34492.5 | I60: =ROUND(F60+(G60/2),2) -> 32246.25
B61: Matériel et mobilier de bureau | F61: =Mobilier!D22 -> 1250 | G61: 187.1875 | H61: 1437.1875 | I61: 1343.59
B62: Matériel informatique | F62: =Mobilier!D26 -> 2500 | G62: 374.375 | H62: 2874.375 | I62: 2687.19
B63: Matériel éducatif | F63: =Mobilier!D29 -> 22100 | G63: 3309.475 | H63: 25409.475 | I63: 23754.74
B64: Jouets destinés aux aires de jeux | F64: =Mobilier!D32 -> 20800 | G64: 3114.8 | H64: 23914.8 | I64: 22357.4
B65: Autres (préciser) : | G65: 0 | H65: 0 | I65: 0
B66: Réserves pour imprévus | G66: 0 | H66: 0 | I66: 0
A67: Total – Mobilier et équipement | G67: =SUM(G59:G66) -> 14544.46875 | H67: =SUM(H59:H66) -> 111669.4688 | I67: =SUM(I59:I66) -> 104397.24
H68: Dépassement | I68: =I52-I67 -> 7697.76
A72: Jeux Extérieurs
C73: Enveloppe Jeux Extérieurs | I73: ='Calcul env. achat-construction'!B26 -> 38220
B74: Plus: | C74: Enveloppe Spécifique Exceptionelle
B75: + ou - | C75: Transfert d'enveloppe (provenant ou vers)
B76: Moins: | C76: Mise de fonds, si applicable ici
C77: Totale de l'enveloppe maximum admissible (A) | I77: =SUM(I73:I76) -> 38220
C79: Coûts de construction budgétés (B) | I79: =I87 -> 0
C81: Enveloppe reconnue Jeux extérieurs (minimum entre A et B) | I81: =MIN(I77,I79) -> 0
B84: Jeux extérieurs | G84: =(F84*TPS)+(F84*TVQ) -> 0 | H84: =(F84+G84) -> 0 | I84: =ROUND(F84+(G84/2),2) -> 0
B85: Autres (préciser) : | G85: =(F85*TPS)+(F85*TVQ) -> 0 | H85: =(F85+G85) -> 0 | I85: =ROUND(F85+(G85/2),2) -> 0
B86: Réserves pour imprévus | G86: =(F86*TPS)+(F86*TVQ) -> 0 | H86: 0 | I86: 0
A87: Total – Jeux extérieurs | G87: =SUM(G84:G86) -> 0 | H87: =SUM(H84:H86) -> 0 | I87: =SUM(I84:I86) -> 0
H88: Dépassement | I88: =I77-I87 -> 38220
A90: 1 Attention! Les taux de taxation peuvent varier au cours du projet.
D92: Budget d'implantantion (suite)
F94: Coûts avant taxes | G94: Taxes (100%) 1 | H94: Total + 100 % des taxes | I94: Coûts + 50% des taxes
A97: Aménagement Extérieur
C98: Enveloppe Aménagement Extérieur | I98: ='Calcul env. achat-construction'!B18 -> 116103.89
B99: Plus: | C99: Enveloppe Spécifique Exceptionelle
B100: + ou - | C100: Transfert d'enveloppe (provenant ou vers)
B101: Moins: | C101: Mise de fonds, si applicable ici
C102: Totale de l'enveloppe maximum admissible (A) | I102: =SUM(I98:I101) -> 116103.89
C104: Coûts de construction budgétés (B) | I104: =I116 -> 107874.46
C106: Enveloppe reconnue Aménagement extérieur (minimum entre A et B) | I106: =MIN(I102,I104) -> 107874.46
B109: Stationnement | F109: =Mobilier!I3 -> 63700 | G109: =(F109*TPS)+(F109*TVQ) -> 9539.075 | H109: =(F109+G109) -> 73239.075 | I109: =ROUND(F109+(G109/2),2) -> 68469.54
B110: Aménagement paysager | F110: =Mobilier!I4 -> 8060 | G110: 1206.985 | H110: =(F110+G110) -> 9266.985 | I110: =ROUND(F110+(G110/2),2) -> 8663.49
B111: Gazonnement | F111: =Mobilier!I5 -> 13000 | G111: 1946.75 | H111: 14946.75 | I111: 13973.38
B112: Clôture | F112: =Mobilier!I6 -> 15600 | G112: 2336.1 | H112: 17936.1 | I112: 16768.05
B113: Autres (préciser) : | G113: 0 | H113: 0 | I113: 0
B114: Autres (préciser) :
B115: Autres (préciser) : | G115: 0 | H115: 0 | I115: 0
A116: Total – Aménagement extérieur | G116: =SUM(G109:G115) -> 15028.91 | H116: =SUM(H109:H115) -> 115388.91 | I116: =SUM(I109:I115) -> 107874.46
H117: Dépassement | I117: =I102-I116 -> 8229.43
A119: Honoraires Professionnels
C120: Enveloppe Honoraire Professionnels | I120: ='Calcul env. achat-construction'!B20 -> 119774.4993
B121: Plus: | C121: Enveloppe Spécifique Exceptionelle
B122: + ou - | C122: Transfert d'enveloppe (provenant ou vers)
B123: Moins: | C123: Mise de fonds, si applicable ici
C124: Totale de l'enveloppe maximum admissible (A) | I124: =SUM(I120:I123) -> 119774.4993
C126: Coûts de construction budgétés (B) | I126: =I140 -> 0
C128: Enveloppe reconnue Honoraires Professionnels (minimum entre A et B) | I128: =MIN(I124,I126) -> 0
B131: Architecte | G131: =(F131*TPS)+(F131*TVQ) -> 0 | H131: =(F131+G131) -> 0 | I131: =ROUND(F131+(G131/2),2) -> 0
B132: Ingénieur (génie civil et structure) | G132: 0 | H132: =(F132+G132) -> 0 | I132: =ROUND(F132+(G132/2),2) -> 0
B133: Ingénieur (génie mécanique et électrique) | G133: =(F133*TPS)+(F133*TVQ) -> 0 | H133: 0 | I133: 0
B134: Arpenteur | G134: 0 | H134: 0 | I134: 0
B135: Comptable | G135: 0 | H135: 0 | I135: 0
B136: Notaire, Avocat | G136: 0 | H136: 0 | I136: 0
B137: Autres (préciser) : | G137: 0 | H137: 0 | I137: 0
B138: Autres (préciser) : | G138: =(F138*TPS)+(F138*TVQ) -> 0 | H138: 0 | I138: 0
B139: Réserves pour imprévus | G139: 0 | H139: 0 | I139: 0
A140: Total – Honoraires professionnels | F140: =SUM(F131:F139) -> 0 | G140: =SUM(G131:G139) -> 0 | H140: =SUM(H131:H139) -> 0 | I140: =SUM(I131:I139) -> 0
H141: Dépassement | I141: =I124-I140 -> 119774.4993
A143: Chargé de Projet
C144: Enveloppe Chargé de Projet
B145: Plus: | C145: Enveloppe Spécifique Exceptionelle | I145: ='Calcul env. achat-construction'!B22 -> 41620.96335
B146: + ou - | C146: Transfert d'enveloppe (provenant ou vers)
B147: Moins: | C147: Mise de fonds, si applicable ici
C148: Totale de l'enveloppe maximum admissible (A) | I148: =SUM(I145:I147) -> 41620.96335
C150: Coûts de construction budgétés (B) | I150: =I156 -> 0
C152: Enveloppe reconnue Chargé de Projet (minimum entre A et B) | I152: =MIN(I148,I150) -> 0
B155: Chargé de Projet | G155: =(F155*TPS)+(F155*TVQ) -> 0 | H155: =(F155+G155) -> 0 | I155: =ROUND(F155+(G155/2),2) -> 0
A156: Total – Chargé de Projet | G156: =SUM(G155) -> 0 | H156: =SUM(H155) -> 0 | I156: =SUM(I155) -> 0
H157: Dépassement | I157: =I148-I156 -> 41620.96335
A159: Terrain
C160: Enveloppe Terrain
B161: Plus: | C161: Enveloppe Spécifique Exceptionelle
B162: + ou - | C162: Transfert d'enveloppe (provenant ou vers)
B163: Moins: | C163: Mise de fonds, si applicable ici
C164: Totale de l'enveloppe maximum admissible (A) | I164: =SUM(I160:I163) -> 0
C166: Coûts de construction budgétés (B) | I166: =I162+I163 -> 0
C168: Enveloppe reconnue Terrain (minimum entre A et B) | I168: =I164+I165 -> 0
B171: Coût d'achat du terrain 2 | G171: =(F171*TPS)+(F171*TVQ) -> 0 | H171: =(F171+G171) -> 0 | I171: =ROUND(F171+(G171/2),2) -> 0
B172: Études de sol | G172: 0 | H172: =(F172+G172) -> 0 | I172: =ROUND(F172+(G172/2),2) -> 0
B173: Certificat de localisation | G173: 0 | H173: 0 | I173: 0
B174: Nivellement du terrain | G174: 0 | H174: 0 | I174: 0
B175: Frais de déboisement | G175: 0 | H175: 0 | I175: 0
B176: Frais de démolition sur le terrain | G176: 0 | H176: 0 | I176: 0
B177: Infrastructures 3 | G177: 0 | H177: 0 | I177: 0
B178: Décontamination du terrain | F178: 0 | G178: 0 | H178: 0 | I178: 0
B179: Autres (préciser) : | C179: Bolard, 2 ponceaux, végétalisation, clôture | G179: 0 | H179: 0 | I179: 0
B180: Réserves pour imprévus | C180: Contingence 10% | G180: 0 | H180: 0 | I180: 0
A181: Total – Terrain | F181: =SUM(F171:F180) -> 0 | G181: =SUM(G171:G180) -> 0 | H181: =SUM(H171:H180) -> 0 | I181: =SUM(I171:I180) -> 0
H182: Dépassement | I182: =I164-I181 -> 0
A185: TOTAL DES COÛTS RÉELS DU PROJET | F185: =F43+F67+F87+F116+F140+F156+F181 -> 0 | G185: =G43+G67+G87+G116+G140+G156+G181 -> 29573.37875 | H185: =H43+H67+H87+H116+H140+H156+H181 -> 227058.3788 | I185: =I43+I67+I87+I116+I140+I156+I181 -> 212271.7
A187: 1 Attention! Les taux de taxation peuvent varier au cours du projet.
A188: 2 Comprend aussi le pourcentage du terrain si on achète un bâtiment.
A189: 3 Infrastructures (branchement aux services publics, fosse septique, puits artésien).
D193: Financement du Projet
A194: Nom du CPE:
F197: Coûts avant taxes | G197: Taxes (100%) 1 | H197: Total + 100 % des taxes | I197: Coûts + 50% des taxes
G199: TPS | H199: 0.05
G200: TVQ | H200: 0.09975
A203: Total de toutes les enveloppes de financement du MFA | I203: =I148+I124+I102+I77+I52+I25+I164 -> 2086441.353
A206: Liquidités qui viennent diminuer les enveloppes de financement du MFA
B208: Indemnités de l'assurance ou d'un prog gouv. | G208: =(F208*TPS)+(F208*TVQ) -> 0 | H208: =(F208+G208) -> 0 | I208: =ROUND(F208+(G208/2),2) -> 0
B209: Produit de vente d'actifs immobiliers | G209: 0 | H209: 0 | I209: 0
B210: Liquidités investies dans le projet par le CPE | G210: 0 | H210: 0 | I210: 0
B211: Subventions d'autres organismes | G211: =(F211*TPS)+(F211*TVQ) -> 0 | H211: 0 | I211: 0
B212: Dons | G212: 0 | H212: 0 | I212: 0
B213: Financement de partenaires | G213: 0 | H213: 0 | I213: 0
A214: Total des Liquidités (Mise de fonds) | F214: =SUM(F208:F210) -> 0 | G214: =SUM(G208:G210) -> 0 | H214: =SUM(H208:H210) -> 0 | I214: =SUM(I208:I210) -> 0
A217: Liquidités qui s'ajoutent aux enveloppes de financement du MFA
B219: Subventions de d'autres organismes | G219: =(F219*TPS)+(F219*TVQ) -> 0 | H219: =(F219+G219) -> 0 | I219: =ROUND(F219+(G219/2),2) -> 0
B220: Dons | G220: 0 | H220: 0 | I220: 0
B221: Financement de partenaires | G221: 0 | H221: 0 | I221: 0
B222: Liquidité investies par le CPE (Liquidité Plus) | I222: 0
A223: Total des Liquidités Bonifiant Le Projet | F223: =SUM(F219:F222) -> 0 | G223: =SUM(G219:G222) -> 0 | H223: =SUM(H219:H222) -> 0 | I223: =SUM(I219:I222) -> 0
A228: TOTAL DU FINANCEMENT DISPONIBLE PAR LE PROGRAMME DE FINANCEMENT DES INFRASTRUCTURES | I228: =I203-I214 -> 2086441.353
A232: TOTAL DU FINANCEMENT DISPONIBLE POUR LE PROJET : | I232: =I214+I223+I228 -> 2086441.353
D235: Équilibre du budget: | G235: (Doit être à 0$ ou +) | I235: =I232-I185 -> 1874169.653

Sheet Budget modifié (hidden)
F2: Date de préparation:
G3: Préparé par:
C5: BUDGET D'IMPLANTATION PFI
A7: Type de projet: | H7: R/B:
A8: Nom du CPE :
A9: No de division : | G9: Nombre de places 0-17 mois : | I9: ='Calcul env. achat-construction'!B6 -> 10
A10: No d'installation : | G10: Nombre de places 18-59 mois : | I10: ='Calcul env. achat-construction'!B5-'Calcul env. achat-construction'!B6 -> 42
A11: Dimension installation (en m2): | G11: Date d'ouverture :
A12: Dimension salle multi (en m2):
F15: Coûts avant taxes | G15: Taxes (100%) 1 | H15: Total + 100 % des taxes | I15: Coûts + 50% des taxes
G17: TPS | H17: 0.05
G18: TVQ | H18: 0.09975
A20: Achat - construction
C21: Enveloppe Achat-Construction | I21: ='Calcul env. achat-construction'!B16 -> 1658627
B22: Plus: | C22: Enveloppe Spécifique Exceptionelle, si applicable
B23: + ou - | C23: Transfert d'enveloppe (provenant ou vers)
B24: Moins: | C24: Mise de fonds, si applicable
C25: Totale de l'enveloppe maximum admissible (A) | I25: =SUM(I21:I24) -> 1658627
C27: Coûts de construction budgétés (B) | I27: =I43 -> 0
C29: Enveloppe reconnue Achat-Construction (minimum entre A et B) | I29: =MIN(I25,I27) -> 0
B32: Coût de construction ou d'agrandissement | G32: =(F32*TPS)+(F32*TVQ) -> 0 | H32: =(F32+G32) -> 0 | I32: =ROUND(F32+(G32/2),2) -> 0
B33: Branchement temporaire aux services publics | G33: 0 | H33: =(F33+G33) -> 0 | I33: =ROUND(F33+(G33/2),2) -> 0
B34: Aménagement de voies de circulation temporaire | G34: 0 | H34: 0 | I34: 0
B35: Permis de construction | G35: 0 | H35: 0 | I35: 0
B36: Assurances exigées pour les travaux | G36: 0 | H36: 0 | I36: 0
B37: Achat d'un bâtiment | G37: 0 | H37: 0 | I37: 0
B38: Amélioration locative | G38: 0 | H38: 0 | I38: 0
B39: Rénovation ou réaménagement | G39: 0 | H39: 0 | I39: 0
B40: Autres (préciser) : | G40: 0 | H40: 0 | I40: 0
B41: Autres (préciser) : | G41: =(F41*TPS)+(F41*TVQ) -> 0 | H41: 0 | I41: 0
B42: Autres (préciser) : | C42: Contingences | G42: 0 | H42: 0 | I42: 0
A43: Total – Achat - construction | G43: =SUM(G32:G42) -> 0 | H43: =SUM(H32:H42) -> 0 | I43: =SUM(I32:I42) -> 0
H44: Dépassement | I44: =I25-I43 -> 1658627
A47: Mobilier et Équipement
C48: Enveloppe Mobilier et Équipement | I48: ='Calcul env. achat-construction'!B24 -> 112095
B49: Plus: | C49: Enveloppe Spécifique Exceptionelle, si applicable
B50: + ou - | C50: Transfert d'enveloppe (provenant ou vers)
B51: Moins: | C51: Mise de fonds, si applicable
C52: Totale de l'enveloppe maximum admissible (A) | I52: =SUM(I48:I51) -> 112095
C54: Coûts de construction budgétés (B) | I54: =I67 -> 104397.24
C56: Enveloppe reconnue Mobilier et Équipement (minimum entre A et B) | I56: =MIN(I52,I54) -> 104397.24
B59: Équipements meubles | F59: =Mobilier!D8 -> 20475 | G59: =(F59*TPS)+(F59*TVQ) -> 3066.13125 | H59: =(F59+G59) -> 23541.13125 | I59: =ROUND(F59+(G59/2),2) -> 22008.07
B60: Équipements de cuisine ou de buanderie | F60: =Mobilier!D19 -> 30000 | G60: 4492.5 | H60: =(F60+G60) -> 34492.5 | I60: =ROUND(F60+(G60/2),2) -> 32246.25
B61: Matériel et mobilier de bureau | F61: =Mobilier!D22 -> 1250 | G61: 187.1875 | H61: 1437.1875 | I61: 1343.59
B62: Matériel informatique | F62: =Mobilier!D26 -> 2500 | G62: 374.375 | H62: 2874.375 | I62: 2687.19
B63: Matériel éducatif | F63: =Mobilier!D29 -> 22100 | G63: 3309.475 | H63: 25409.475 | I63: 23754.74
B64: Jouets destinés aux aires de jeux | F64: =Mobilier!D32 -> 20800 | G64: 3114.8 | H64: 23914.8 | I64: 22357.4
B65: Autres (préciser) : | G65: 0 | H65: 0 | I65: 0
B66: Réserves pour imprévus | G66: 0 | H66: 0 | I66: 0
A67: Total – Mobilier et équipement | G67: =SUM(G59:G66) -> 14544.46875 | H67: =SUM(H59:H66) -> 111669.4688 | I67: =SUM(I59:I66) -> 104397.24
H68: Dépassement | I68: =I52-I67 -> 7697.76
A72: Jeux Extérieurs
C73: Enveloppe Jeux Extérieurs | I73: ='Calcul env. achat-construction'!B26 -> 38220
B74: Plus: | C74: Enveloppe Spécifique Exceptionelle
B75: + ou - | C75: Transfert d'enveloppe (provenant ou vers)
B76: Moins: | C76: Mise de fonds, si applicable ici
C77: Totale de l'enveloppe maximum admissible (A) | I77: =SUM(I73:I76) -> 38220
C79: Coûts de construction budgétés (B) | I79: =I87 -> 0
C81: Enveloppe reconnue Jeux extérieurs (minimum entre A et B) | I81: =MIN(I77,I79) -> 0
B84: Jeux extérieurs | G84: =(F84*TPS)+(F84*TVQ) -> 0 | H84: =(F84+G84) -> 0 | I84: =ROUND(F84+(G84/2),2) -> 0
B85: Autres (préciser) : | G85: =(F85*TPS)+(F85*TVQ) -> 0 | H85: =(F85+G85) -> 0 | I85: =ROUND(F85+(G85/2),2) -> 0
B86: Réserves pour imprévus | G86: =(F86*TPS)+(F86*TVQ) -> 0 | H86: 0 | I86: 0
A87: Total – Jeux extérieurs | G87: =SUM(G84:G86) -> 0 | H87: =SUM(H84:H86) -> 0 | I87: =SUM(I84:I86) -> 0
H88: Dépassement | I88: =I77-I87 -> 38220
A90: 1 Attention! Les taux de taxation peuvent varier au cours du projet.
D92: Budget d'implantantion (suite)
F94: Coûts avant taxes | G94: Taxes (100%) 1 | H94: Total + 100 % des taxes | I94: Coûts + 50% des taxes
A97: Aménagement Extérieur
C98: Enveloppe Aménagement Extérieur | I98: ='Calcul env. achat-construction'!B18 -> 116103.89
B99: Plus: | C99: Enveloppe Spécifique Exceptionelle
B100: + ou - | C100: Transfert d'enveloppe (provenant ou vers)
B101: Moins: | C101: Mise de fonds, si applicable ici
C102: Totale de l'enveloppe maximum admissible (A) | I102: =SUM(I98:I101) -> 116103.89
C104: Coûts de construction budgétés (B) | I104: =I116 -> 107874.46
C106: Enveloppe reconnue Aménagement extérieur (minimum entre A et B) | I106: =MIN(I102,I104) -> 107874.46
B109: Stationnement | F109: =Mobilier!I3 -> 63700 | G109: =(F109*TPS)+(F109*TVQ) -> 9539.075 | H109: =(F109+G109) -> 73239.075 | I109: =ROUND(F109+(G109/2),2) -> 68469.54
B110: Aménagement paysager | F110: =Mobilier!I4 -> 8060 | G110: 1206.985 | H110: =(F110+G110) -> 9266.985 | I110: =ROUND(F110+(G110/2),2) -> 8663.49
B111: Gazonnement | F111: =Mobilier!I5 -> 13000 | G111: 1946.75 | H111: 14946.75 | I111: 13973.38
B112: Clôture | F112: =Mobilier!I6 -> 15600 | G112: 2336.1 | H112: 17936.1 | I112: 16768.05
B113: Autres (préciser) : | G113: 0 | H113: 0 | I113: 0
B114: Autres (préciser) :
B115: Autres (préciser) : | G115: 0 | H115: 0 | I115: 0
A116: Total – Aménagement extérieur | G116: =SUM(G109:G115) -> 15028.91 | H116: =SUM(H109:H115) -> 115388.91 | I116: =SUM(I109:I115) -> 107874.46
H117: Dépassement | I117: =I102-I116 -> 8229.43
A119: Honoraires Professionnels
C120: Enveloppe Honoraire Professionnels | I120: ='Calcul env. achat-construction'!B20 -> 119774.4993
B121: Plus: | C121: Enveloppe Spécifique Exceptionelle
B122: + ou - | C122: Transfert d'enveloppe (provenant ou vers)
B123: Moins: | C123: Mise de fonds, si applicable ici
C124: Totale de l'enveloppe maximum admissible (A) | I124: =SUM(I120:I123) -> 119774.4993
C126: Coûts de construction budgétés (B) | I126: =I140 -> 0
C128: Enveloppe reconnue Honoraires Professionnels (minimum entre A et B) | I128: =MIN(I124,I126) -> 0
B131: Architecte | G131: =(F131*TPS)+(F131*TVQ) -> 0 | H131: =(F131+G131) -> 0 | I131: =ROUND(F131+(G131/2),2) -> 0
B132: Ingénieur (génie civil et structure) | G132: 0 | H132: =(F132+G132) -> 0 | I132: =ROUND(F132+(G132/2),2) -> 0
B133: Ingénieur (génie mécanique et électrique) | G133: =(F133*TPS)+(F133*TVQ) -> 0 | H133: 0 | I133: 0
B134: Arpenteur | G134: 0 | H134: 0 | I134: 0
B135: Comptable | G135: 0 | H135: 0 | I135: 0
B136: Notaire, Avocat | G136: 0 | H136: 0 | I136: 0
B137: Autres (préciser) : | G137: 0 | H137: 0 | I137: 0
B138: Autres (préciser) : | G138: =(F138*TPS)+(F138*TVQ) -> 0 | H138: 0 | I138: 0
B139: Réserves pour imprévus | G139: 0 | H139: 0 | I139: 0
A140: Total – Honoraires professionnels | F140: =SUM(F131:F139) -> 0 | G140: =SUM(G131:G139) -> 0 | H140: =SUM(H131:H139) -> 0 | I140: =SUM(I131:I139) -> 0
H141: Dépassement | I141: =I124-I140 -> 119774.4993
A143: Chargé de Projet
C144: Enveloppe Chargé de Projet
B145: Plus: | C145: Enveloppe Spécifique Exceptionelle | I145: ='Calcul env. achat-construction'!B22 -> 41620.96335
B146: + ou - | C146: Transfert d'enveloppe (provenant ou vers)
B147: Moins: | C147: Mise de fonds, si applicable ici
C148: Totale de l'enveloppe maximum admissible (A) | I148: =SUM(I145:I147) -> 41620.96335
C150: Coûts de construction budgétés (B) | I150: =I156 -> 0
C152: Enveloppe reconnue Chargé de Projet (minimum entre A et B) | I152: =MIN(I148,I150) -> 0
B155: Chargé de Projet | G155: =(F155*TPS)+(F155*TVQ) -> 0 | H155: =(F155+G155) -> 0 | I155: =ROUND(F155+(G155/2),2) -> 0
A156: Total – Chargé de Projet | G156: =SUM(G155) -> 0 | H156: =SUM(H155) -> 0 | I156: =SUM(I155) -> 0
H157: Dépassement | I157: =I148-I156 -> 41620.96335
A159: Terrain
C160: Enveloppe Terrain
B161: Plus: | C161: Enveloppe Spécifique Exceptionelle
B162: + ou - | C162: Transfert d'enveloppe (provenant ou vers)
B163: Moins: | C163: Mise de fonds, si applicable ici
C164: Totale de l'enveloppe maximum admissible (A) | I164: =SUM(I160:I163) -> 0
C166: Coûts de construction budgétés (B) | I166: =I162+I163 -> 0
C168: Enveloppe reconnue Terrain (minimum entre A et B) | I168: =I164+I165 -> 0
B171: Coût d'achat du terrain 2 | G171: =(F171*TPS)+(F171*TVQ) -> 0 | H171: =(F171+G171) -> 0 | I171: =ROUND(F171+(G171/2),2) -> 0
B172: Études de sol | G172: 0 | H172: =(F172+G172) -> 0 | I172: =ROUND(F172+(G172/2),2) -> 0
B173: Certificat de localisation | G173: 0 | H173: 0 | I173: 0
B174: Nivellement du terrain | G174: 0 | H174: 0 | I174: 0
B175: Frais de déboisement | G175: 0 | H175: 0 | I175: 0
B176: Frais de démolition sur le terrain | G176: 0 | H176: 0 | I176: 0
B177: Infrastructures 3 | G177: 0 | H177: 0 | I177: 0
B178: Décontamination du terrain | F178: 0 | G178: 0 | H178: 0 | I178: 0
B179: Autres (préciser) : | C179: Bolard, 2 ponceaux, végétalisation, clôture | G179: 0 | H179: 0 | I179: 0
B180: Réserves pour imprévus | C180: Contingence 10% | G180: 0 | H180: 0 | I180: 0
A181: Total – Terrain | F181: =SUM(F171:F180) -> 0 | G181: =SUM(G171:G180) -> 0 | H181: =SUM(H171:H180) -> 0 | I181: =SUM(I171:I180) -> 0
H182: Dépassement | I182: =I164-I181 -> 0
A185: TOTAL DES COÛTS RÉELS DU PROJET | F185: =F43+F67+F87+F116+F140+F156+F181 -> 0 | G185: =G43+G67+G87+G116+G140+G156+G181 -> 29573.37875 | H185: =H43+H67+H87+H116+H140+H156+H181 -> 227058.3788 | I185: =I43+I67+I87+I116+I140+I156+I181 -> 212271.7
A187: 1 Attention! Les taux de taxation peuvent varier au cours du projet.
A188: 2 Comprend aussi le pourcentage du terrain si on achète un bâtiment.
A189: 3 Infrastructures (branchement aux services publics, fosse septique, puits artésien).
D193: Financement du Projet
A194: Nom du CPE:
F197: Coûts avant taxes | G197: Taxes (100%) 1 | H197: Total + 100 % des taxes | I197: Coûts + 50% des taxes
G199: TPS | H199: 0.05
G200: TVQ | H200: 0.09975
A203: Total de toutes les enveloppes de financement du MFA | I203: =I148+I124+I102+I77+I52+I25 -> 2086441.353
A206: Liquidités qui viennent diminuer les enveloppes de financement du MFA
B208: Indemnités de l'assurance ou d'un prog gouv. | G208: =(F208*TPS)+(F208*TVQ) -> 0 | H208: =(F208+G208) -> 0 | I208: =ROUND(F208+(G208/2),2) -> 0
B209: Produit de vente d'actifs immobiliers | G209: 0 | H209: 0 | I209: 0
B210: Liquidités investies dans le projet par le CPE | G210: 0 | H210: 0 | I210: 0
B211: Subventions d'autres organismes | G211: =(F211*TPS)+(F211*TVQ) -> 0 | H211: 0 | I211: 0
B212: Dons | G212: 0 | H212: 0 | I212: 0
B213: Financement de partenaires | G213: 0 | H213: 0 | I213: 0
A214: Total des Liquidités (Mise de fonds) | F214: =SUM(F208:F210) -> 0 | G214: =SUM(G208:G210) -> 0 | H214: =SUM(H208:H210) -> 0 | I214: =SUM(I208:I210) -> 0
A217: Liquidités qui s'ajoutent aux enveloppes de financement du MFA
B219: Subventions de d'autres organismes | G219: =(F219*TPS)+(F219*TVQ) -> 0 | H219: =(F219+G219) -> 0 | I219: =ROUND(F219+(G219/2),2) -> 0
B220: Dons | G220: 0 | H220: 0 | I220: 0
B221: Financement de partenaires | G221: 0 | H221: 0 | I221: 0
B222: Liquidité investies par le CPE (Liquidité Plus) | I222: 0
A223: Total des Liquidités Bonifiant Le Projet | F223: =SUM(F219:F222) -> 0 | G223: =SUM(G219:G222) -> 0 | H223: =SUM(H219:H222) -> 0 | I223: =SUM(I219:I222) -> 0
A228: TOTAL DU FINANCEMENT DISPONIBLE PAR LE PROGRAMME DE FINANCEMENT DES INFRASTRUCTURES | I228: =I203-I214 -> 2086441.353
A232: TOTAL DU FINANCEMENT DISPONIBLE POUR LE PROJET : | I232: =I214+I223+I228 -> 2086441.353
D235: Équilibre du budget: | G235: (Doit être à 0$ ou +) | I235: =I232-I185 -> 1874169.653

Sheet Budget coûts réels (hidden)
F2: Date de préparation:
G3: Préparé par:
C5: BUDGET D'IMPLANTATION PFI
A7: Type de projet: | H7: R/B:
A8: Nom du CPE :
A9: No de division : | G9: Nombre de places 0-17 mois : | I9: ='Calcul env. achat-construction'!B6 -> 10
A10: No d'installation : | G10: Nombre de places 18-59 mois : | I10: ='Calcul env. achat-construction'!B5-'Calcul env. achat-construction'!B6 -> 42
A11: Dimension installation (en m2): | G11: Date d'ouverture :
A12: Dimension salle multi (en m2):
F15: Coûts avant taxes | G15: Taxes (100%) 1 | H15: Total + 100 % des taxes | I15: Coûts + 50% des taxes
G17: TPS | H17: 0.05
G18: TVQ | H18: 0.09975
A20: Achat - construction
C21: Enveloppe Achat-Construction | I21: ='Calcul env. achat-construction'!B16 -> 1658627
B22: Plus: | C22: Enveloppe Spécifique Exceptionelle, si applicable
B23: + ou - | C23: Transfert d'enveloppe (provenant ou vers)
B24: Moins: | C24: Mise de fonds, si applicable
C25: Totale de l'enveloppe maximum admissible (A) | I25: =SUM(I21:I24) -> 1658627
C27: Coûts de construction budgétés (B) | I27: =I43 -> 0
C29: Enveloppe reconnue Achat-Construction (minimum entre A et B) | I29: =MIN(I25,I27) -> 0
B32: Coût de construction ou d'agrandissement | G32: =(F32*TPS)+(F32*TVQ) -> 0 | H32: =(F32+G32) -> 0 | I32: =ROUND(F32+(G32/2),2) -> 0
B33: Branchement temporaire aux services publics | G33: 0 | H33: =(F33+G33) -> 0 | I33: =ROUND(F33+(G33/2),2) -> 0
B34: Aménagement de voies de circulation temporaire | G34: 0 | H34: 0 | I34: 0
B35: Permis de construction | G35: 0 | H35: 0 | I35: 0
B36: Assurances exigées pour les travaux | G36: 0 | H36: 0 | I36: 0
B37: Achat d'un bâtiment | G37: 0 | H37: 0 | I37: 0
B38: Amélioration locative | G38: 0 | H38: 0 | I38: 0
B39: Rénovation ou réaménagement | G39: 0 | H39: 0 | I39: 0
B40: Autres (préciser) : | G40: 0 | H40: 0 | I40: 0
B41: Autres (préciser) : | G41: =(F41*TPS)+(F41*TVQ) -> 0 | H41: 0 | I41: 0
B42: Autres (préciser) : | C42: Contingences | G42: 0 | H42: 0 | I42: 0
A43: Total – Achat - construction | G43: =SUM(G32:G42) -> 0 | H43: =SUM(H32:H42) -> 0 | I43: =SUM(I32:I42) -> 0
H44: Dépassement | I44: =I25-I43 -> 1658627
A47: Mobilier et Équipement
C48: Enveloppe Mobilier et Équipement | I48: ='Calcul env. achat-construction'!B24 -> 112095
B49: Plus: | C49: Enveloppe Spécifique Exceptionelle, si applicable
B50: + ou - | C50: Transfert d'enveloppe (provenant ou vers)
B51: Moins: | C51: Mise de fonds, si applicable
C52: Totale de l'enveloppe maximum admissible (A) | I52: =SUM(I48:I51) -> 112095
C54: Coûts de construction budgétés (B) | I54: =I67 -> 104397.24
C56: Enveloppe reconnue Mobilier et Équipement (minimum entre A et B) | I56: =MIN(I52,I54) -> 104397.24
B59: Équipements meubles | F59: =Mobilier!D8 -> 20475 | G59: =(F59*TPS)+(F59*TVQ) -> 3066.13125 | H59: =(F59+G59) -> 23541.13125 | I59: =ROUND(F59+(G59/2),2) -> 22008.07
B60: Équipements de cuisine ou de buanderie | F60: =Mobilier!D19 -> 30000 | G60: 4492.5 | H60: =(F60+G60) -> 34492.5 | I60: =ROUND(F60+(G60/2),2) -> 32246.25
B61: Matériel et mobilier de bureau | F61: =Mobilier!D22 -> 1250 | G61: 187.1875 | H61: 1437.1875 | I61: 1343.59
B62: Matériel informatique | F62: =Mobilier!D26 -> 2500 | G62: 374.375 | H62: 2874.375 | I62: 2687.19
B63: Matériel éducatif | F63: =Mobilier!D29 -> 22100 | G63: 3309.475 | H63: 25409.475 | I63: 23754.74
B64: Jouets destinés aux aires de jeux | F64: =Mobilier!D32 -> 20800 | G64: 3114.8 | H64: 23914.8 | I64: 22357.4
B65: Autres (préciser) : | G65: 0 | H65: 0 | I65: 0
B66: Réserves pour imprévus | G66: 0 | H66: 0 | I66: 0
A67: Total – Mobilier et équipement | G67: =SUM(G59:G66) -> 14544.46875 | H67: =SUM(H59:H66) -> 111669.4688 | I67: =SUM(I59:I66) -> 104397.24
H68: Dépassement | I68: =I52-I67 -> 7697.76
A72: Jeux Extérieurs
C73: Enveloppe Jeux Extérieurs | I73: ='Calcul env. achat-construction'!B26 -> 38220
B74: Plus: | C74: Enveloppe Spécifique Exceptionelle
B75: + ou - | C75: Transfert d'enveloppe (provenant ou vers)
B76: Moins: | C76: Mise de fonds, si applicable ici
C77: Totale de l'enveloppe maximum admissible (A) | I77: =SUM(I73:I76) -> 38220
C79: Coûts de construction budgétés (B) | I79: =I87 -> 0
C81: Enveloppe reconnue Jeux extérieurs (minimum entre A et B) | I81: =MIN(I77,I79) -> 0
B84: Jeux extérieurs | G84: =(F84*TPS)+(F84*TVQ) -> 0 | H84: =(F84+G84) -> 0 | I84: =ROUND(F84+(G84/2),2) -> 0
B85: Autres (préciser) : | G85: =(F85*TPS)+(F85*TVQ) -> 0 | H85: =(F85+G85) -> 0 | I85: =ROUND(F85+(G85/2),2) -> 0
B86: Réserves pour imprévus | G86: =(F86*TPS)+(F86*TVQ) -> 0 | H86: 0 | I86: 0
A87: Total – Jeux extérieurs | G87: =SUM(G84:G86) -> 0 | H87: =SUM(H84:H86) -> 0 | I87: =SUM(I84:I86) -> 0
H88: Dépassement | I88: =I77-I87 -> 38220
A90: 1 Attention! Les taux de taxation peuvent varier au cours du projet.
D92: Budget d'implantantion (suite)
F94: Coûts avant taxes | G94: Taxes (100%) 1 | H94: Total + 100 % des taxes | I94: Coûts + 50% des taxes
A97: Aménagement Extérieur
C98: Enveloppe Aménagement Extérieur | I98: ='Calcul env. achat-construction'!B18 -> 116103.89
B99: Plus: | C99: Enveloppe Spécifique Exceptionelle
B100: + ou - | C100: Transfert d'enveloppe (provenant ou vers)
B101: Moins: | C101: Mise de fonds, si applicable ici
C102: Totale de l'enveloppe maximum admissible (A) | I102: =SUM(I98:I101) -> 116103.89
C104: Coûts de construction budgétés (B) | I104: =I116 -> 107874.46
C106: Enveloppe reconnue Aménagement extérieur (minimum entre A et B) | I106: =MIN(I102,I104) -> 107874.46
B109: Stationnement | F109: =Mobilier!I3 -> 63700 | G109: =(F109*TPS)+(F109*TVQ) -> 9539.075 | H109: =(F109+G109) -> 73239.075 | I109: =ROUND(F109+(G109/2),2) -> 68469.54
B110: Aménagement paysager | F110: =Mobilier!I4 -> 8060 | G110: 1206.985 | H110: =(F110+G110) -> 9266.985 | I110: =ROUND(F110+(G110/2),2) -> 8663.49
B111: Gazonnement | F111: =Mobilier!I5 -> 13000 | G111: 1946.75 | H111: 14946.75 | I111: 13973.38
B112: Clôture | F112: =Mobilier!I6 -> 15600 | G112: 2336.1 | H112: 17936.1 | I112: 16768.05
B113: Autres (préciser) : | G113: 0 | H113: 0 | I113: 0
B114: Autres (préciser) :
B115: Autres (préciser) : | G115: 0 | H115: 0 | I115: 0
A116: Total – Aménagement extérieur | G116: =SUM(G109:G115) -> 15028.91 | H116: =SUM(H109:H115) -> 115388.91 | I116: =SUM(I109:I115) -> 107874.46
H117: Dépassement | I117: =I102-I116 -> 8229.43
A119: Honoraires Professionnels
C120: Enveloppe Honoraire Professionnels | I120: ='Calcul env. achat-construction'!B20 -> 119774.4993
B121: Plus: | C121: Enveloppe Spécifique Exceptionelle
B122: + ou - | C122: Transfert d'enveloppe (provenant ou vers)
B123: Moins: | C123: Mise de fonds, si applicable ici
C124: Totale de l'enveloppe maximum admissible (A) | I124: =SUM(I120:I123) -> 119774.4993
C126: Coûts de construction budgétés (B) | I126: =I140 -> 0
C128: Enveloppe reconnue Honoraires Professionnels (minimum entre A et B) | I128: =MIN(I124,I126) -> 0
B131: Architecte | G131: =(F131*TPS)+(F131*TVQ) -> 0 | H131: =(F131+G131) -> 0 | I131: =ROUND(F131+(G131/2),2) -> 0
B132: Ingénieur (génie civil et structure) | G132: 0 | H132: =(F132+G132) -> 0 | I132: =ROUND(F132+(G132/2),2) -> 0
B133: Ingénieur (génie mécanique et électrique) | G133: =(F133*TPS)+(F133*TVQ) -> 0 | H133: 0 | I133: 0
B134: Arpenteur | G134: 0 | H134: 0 | I134: 0
B135: Comptable | G135: 0 | H135: 0 | I135: 0
B136: Notaire, Avocat | G136: 0 | H136: 0 | I136: 0
B137: Autres (préciser) : | G137: 0 | H137: 0 | I137: 0
B138: Autres (préciser) : | G138: =(F138*TPS)+(F138*TVQ) -> 0 | H138: 0 | I138: 0
B139: Réserves pour imprévus | G139: 0 | H139: 0 | I139: 0
A140: Total – Honoraires professionnels | F140: =SUM(F131:F139) -> 0 | G140: =SUM(G131:G139) -> 0 | H140: =SUM(H131:H139) -> 0 | I140: =SUM(I131:I139) -> 0
H141: Dépassement | I141: =I124-I140 -> 119774.4993
A143: Chargé de Projet
C144: Enveloppe Chargé de Projet
B145: Plus: | C145: Enveloppe Spécifique Exceptionelle | I145: ='Calcul env. achat-construction'!B22 -> 41620.96335
B146: + ou - | C146: Transfert d'enveloppe (provenant ou vers)
B147: Moins: | C147: Mise de fonds, si applicable ici
C148: Totale de l'enveloppe maximum admissible (A) | I148: =SUM(I145:I147) -> 41620.96335
C150: Coûts de construction budgétés (B) | I150: =I156 -> 0
C152: Enveloppe reconnue Chargé de Projet (minimum entre A et B) | I152: =MIN(I148,I150) -> 0
B155: Chargé de Projet | G155: =(F155*TPS)+(F155*TVQ) -> 0 | H155: =(F155+G155) -> 0 | I155: =ROUND(F155+(G155/2),2) -> 0
A156: Total – Chargé de Projet | G156: =SUM(G155) -> 0 | H156: =SUM(H155) -> 0 | I156: =SUM(I155) -> 0
H157: Dépassement | I157: =I148-I156 -> 41620.96335
A159: Terrain
C160: Enveloppe Terrain
B161: Plus: | C161: Enveloppe Spécifique Exceptionelle
B162: + ou - | C162: Transfert d'enveloppe (provenant ou vers)
B163: Moins: | C163: Mise de fonds, si applicable ici
C164: Totale de l'enveloppe maximum admissible (A) | I164: =SUM(I160:I163) -> 0
C166: Coûts de construction budgétés (B) | I166: =I162+I163 -> 0
C168: Enveloppe reconnue Terrain (minimum entre A et B) | I168: =I164+I165 -> 0
B171: Coût d'achat du terrain 2 | G171: =(F171*TPS)+(F171*TVQ) -> 0 | H171: =(F171+G171) -> 0 | I171: =ROUND(F171+(G171/2),2) -> 0
B172: Études de sol | G172: 0 | H172: =(F172+G172) -> 0 | I172: =ROUND(F172+(G172/2),2) -> 0
B173: Certificat de localisation | G173: 0 | H173: 0 | I173: 0
B174: Nivellement du terrain | G174: 0 | H174: 0 | I174: 0
B175: Frais de déboisement | G175: 0 | H175: 0 | I175: 0
B176: Frais de démolition sur le terrain | G176: 0 | H176: 0 | I176: 0
B177: Infrastructures 3 | G177: 0 | H177: 0 | I177: 0
B178: Décontamination du terrain | F178: 0 | G178: 0 | H178: 0 | I178: 0
B179: Autres (préciser) : | C179: Bolard, 2 ponceaux, végétalisation, clôture | G179: 0 | H179: 0 | I179: 0
B180: Réserves pour imprévus | C180: Contingence 10% | G180: 0 | H180: 0 | I180: 0
A181: Total – Terrain | F181: =SUM(F171:F180) -> 0 | G181: =SUM(G171:G180) -> 0 | H181: =SUM(H171:H180) -> 0 | I181: =SUM(I171:I180) -> 0
H182: Dépassement | I182: =I164-I181 -> 0
A185: TOTAL DES COÛTS RÉELS DU PROJET | F185: =F43+F67+F87+F116+F140+F156+F181 -> 0 | G185: =G43+G67+G87+G116+G140+G156+G181 -> 29573.37875 | H185: =H43+H67+H87+H116+H140+H156+H181 -> 227058.3788 | I185: =I43+I67+I87+I116+I140+I156+I181 -> 212271.7
A187: 1 Attention! Les taux de taxation peuvent varier au cours du projet.
A188: 2 Comprend aussi le pourcentage du terrain si on achète un bâtiment.
A189: 3 Infrastructures (branchement aux services publics, fosse septique, puits artésien).
D193: Financement du Projet
A194: Nom du CPE:
F197: Coûts avant taxes | G197: Taxes (100%) 1 | H197: Total + 100 % des taxes | I197: Coûts + 50% des taxes
G199: TPS | H199: 0.05
G200: TVQ | H200: 0.09975
A203: Total de toutes les enveloppes de financement du MFA | I203: =I148+I124+I102+I77+I52+I25 -> 2086441.353
A206: Liquidités qui viennent diminuer les enveloppes de financement du MFA
B208: Indemnités de l'assurance ou d'un prog gouv. | G208: =(F208*TPS)+(F208*TVQ) -> 0 | H208: =(F208+G208) -> 0 | I208: =ROUND(F208+(G208/2),2) -> 0
B209: Produit de vente d'actifs immobiliers | G209: 0 | H209: 0 | I209: 0
B210: Liquidités investies dans le projet par le CPE | G210: 0 | H210: 0 | I210: 0
B211: Subventions d'autres organismes | G211: =(F211*TPS)+(F211*TVQ) -> 0 | H211: 0 | I211: 0
B212: Dons | G212: 0 | H212: 0 | I212: 0
B213: Financement de partenaires | G213: 0 | H213: 0 | I213: 0
A214: Total des Liquidités (Mise de fonds) | F214: =SUM(F208:F210) -> 0 | G214: =SUM(G208:G210) -> 0 | H214: =SUM(H208:H210) -> 0 | I214: =SUM(I208:I210) -> 0
A217: Liquidités qui s'ajoutent aux enveloppes de financement du MFA
B219: Subventions de d'autres organismes | G219: =(F219*TPS)+(F219*TVQ) -> 0 | H219: =(F219+G219) -> 0 | I219: =ROUND(F219+(G219/2),2) -> 0
B220: Dons | G220: 0 | H220: 0 | I220: 0
B221: Financement de partenaires | G221: 0 | H221: 0 | I221: 0
B222: Liquidité investies par le CPE (Liquidité Plus) | I222: 0
A223: Total des Liquidités Bonifiant Le Projet | F223: =SUM(F219:F222) -> 0 | G223: =SUM(G219:G222) -> 0 | H223: =SUM(H219:H222) -> 0 | I223: =SUM(I219:I222) -> 0
A228: TOTAL DU FINANCEMENT DISPONIBLE PAR LE PROGRAMME DE FINANCEMENT DES INFRASTRUCTURES | I228: =I203-I214 -> 2086441.353
A232: TOTAL DU FINANCEMENT DISPONIBLE POUR LE PROJET : | I232: =I214+I223+I228 -> 2086441.353
D235: Équilibre du budget: | G235: (Doit être à 0$ ou +) | I235: =I232-I185 -> 1874169.653

Sheet Budget final (hidden)
F2: Date de préparation:
G3: Préparé par:
C5: BUDGET D'IMPLANTATION PFI
A7: Type de projet: | H7: R/B:
A8: Nom du CPE :
A9: No de division : | G9: Nombre de places 0-17 mois : | I9: ='Calcul env. achat-construction'!B6 -> 10
A10: No d'installation : | G10: Nombre de places 18-59 mois : | I10: ='Calcul env. achat-construction'!B5-'Calcul env. achat-construction'!B6 -> 42
A11: Dimension installation (en m2): | G11: Date d'ouverture :
A12: Dimension salle multi (en m2):
F15: Coûts avant taxes | G15: Taxes (100%) 1 | H15: Total + 100 % des taxes | I15: Coûts + 50% des taxes
G17: TPS | H17: 0.05
G18: TVQ | H18: 0.09975
A20: Achat - construction
C21: Enveloppe Achat-Construction | I21: ='Calcul env. achat-construction'!B16 -> 1658627
B22: Plus: | C22: Enveloppe Spécifique Exceptionelle, si applicable
B23: + ou - | C23: Transfert d'enveloppe (provenant ou vers)
B24: Moins: | C24: Mise de fonds, si applicable
C25: Totale de l'enveloppe maximum admissible (A) | I25: =SUM(I21:I24) -> 1658627
C27: Coûts de construction budgétés (B) | I27: =I43 -> 0
C29: Enveloppe reconnue Achat-Construction (minimum entre A et B) | I29: =MIN(I25,I27) -> 0
B32: Coût de construction ou d'agrandissement | G32: =(F32*TPS)+(F32*TVQ) -> 0 | H32: =(F32+G32) -> 0 | I32: =ROUND(F32+(G32/2),2) -> 0
B33: Branchement temporaire aux services publics | G33: 0 | H33: =(F33+G33) -> 0 | I33: =ROUND(F33+(G33/2),2) -> 0
B34: Aménagement de voies de circulation temporaire | G34: 0 | H34: 0 | I34: 0
B35: Permis de construction | G35: 0 | H35: 0 | I35: 0
B36: Assurances exigées pour les travaux | G36: 0 | H36: 0 | I36: 0
B37: Achat d'un bâtiment | G37: 0 | H37: 0 | I37: 0
B38: Amélioration locative | G38: 0 | H38: 0 | I38: 0
B39: Rénovation ou réaménagement | G39: 0 | H39: 0 | I39: 0
B40: Autres (préciser) : | G40: 0 | H40: 0 | I40: 0
B41: Autres (préciser) : | G41: =(F41*TPS)+(F41*TVQ) -> 0 | H41: 0 | I41: 0
B42: Autres (préciser) : | C42: Contingences | G42: 0 | H42: 0 | I42: 0
A43: Total – Achat - construction | G43: =SUM(G32:G42) -> 0 | H43: =SUM(H32:H42) -> 0 | I43: =SUM(I32:I42) -> 0
H44: Dépassement | I44: =I25-I43 -> 1658627
A47: Mobilier et Équipement
C48: Enveloppe Mobilier et Équipement | I48: ='Calcul env. achat-construction'!B24 -> 112095
B49: Plus: | C49: Enveloppe Spécifique Exceptionelle, si applicable
B50: + ou - | C50: Transfert d'enveloppe (provenant ou vers)
B51: Moins: | C51: Mise de fonds, si applicable
C52: Totale de l'enveloppe maximum admissible (A) | I52: =SUM(I48:I51) -> 112095
C54: Coûts de construction budgétés (B) | I54: =I67 -> 104397.24
C56: Enveloppe reconnue Mobilier et Équipement (minimum entre A et B) | I56: =MIN(I52,I54) -> 104397.24
B59: Équipements meubles | F59: =Mobilier!D8 -> 20475 | G59: =(F59*TPS)+(F59*TVQ) -> 3066.13125 | H59: =(F59+G59) -> 23541.13125 | I59: =ROUND(F59+(G59/2),2) -> 22008.07
B60: Équipements de cuisine ou de buanderie | F60: =Mobilier!D19 -> 30000 | G60: 4492.5 | H60: =(F60+G60) -> 34492.5 | I60: =ROUND(F60+(G60/2),2) -> 32246.25
B61: Matériel et mobilier de bureau | F61: =Mobilier!D22 -> 1250 | G61: 187.1875 | H61: 1437.1875 | I61: 1343.59
B62: Matériel informatique | F62: =Mobilier!D26 -> 2500 | G62: 374.375 | H62: 2874.375 | I62: 2687.19
B63: Matériel éducatif | F63: =Mobilier!D29 -> 22100 | G63: 3309.475 | H63: 25409.475 | I63: 23754.74
B64: Jouets destinés aux aires de jeux | F64: =Mobilier!D32 -> 20800 | G64: 3114.8 | H64: 23914.8 | I64: 22357.4
B65: Autres (préciser) : | G65: 0 | H65: 0 | I65: 0
B66: Réserves pour imprévus | G66: 0 | H66: 0 | I66: 0
A67: Total – Mobilier et équipement | G67: =SUM(G59:G66) -> 14544.46875 | H67: =SUM(H59:H66) -> 111669.4688 | I67: =SUM(I59:I66) -> 104397.24
H68: Dépassement | I68: =I52-I67 -> 7697.76
A72: Jeux Extérieurs
C73: Enveloppe Jeux Extérieurs | I73: ='Calcul env. achat-construction'!B26 -> 38220
B74: Plus: | C74: Enveloppe Spécifique Exceptionelle
B75: + ou - | C75: Transfert d'enveloppe (provenant ou vers)
B76: Moins: | C76: Mise de fonds, si applicable ici
C77: Totale de l'enveloppe maximum admissible (A) | I77: =SUM(I73:I76) -> 38220
C79: Coûts de construction budgétés (B) | I79: =I87 -> 0
C81: Enveloppe reconnue Jeux extérieurs (minimum entre A et B) | I81: =MIN(I77,I79) -> 0
B84: Jeux extérieurs | G84: =(F84*TPS)+(F84*TVQ) -> 0 | H84: =(F84+G84) -> 0 | I84: =ROUND(F84+(G84/2),2) -> 0
B85: Autres (préciser) : | G85: =(F85*TPS)+(F85*TVQ) -> 0 | H85: =(F85+G85) -> 0 | I85: =ROUND(F85+(G85/2),2) -> 0
B86: Réserves pour imprévus | G86: =(F86*TPS)+(F86*TVQ) -> 0 | H86: 0 | I86: 0
A87: Total – Jeux extérieurs | G87: =SUM(G84:G86) -> 0 | H87: =SUM(H84:H86) -> 0 | I87: =SUM(I84:I86) -> 0
H88: Dépassement | I88: =I77-I87 -> 38220
A90: 1 Attention! Les taux de taxation peuvent varier au cours du projet.
D92: Budget d'implantantion (suite)
F94: Coûts avant taxes | G94: Taxes (100%) 1 | H94: Total + 100 % des taxes | I94: Coûts + 50% des taxes
A97: Aménagement Extérieur
C98: Enveloppe Aménagement Extérieur | I98: ='Calcul env. achat-construction'!B18 -> 116103.89
B99: Plus: | C99: Enveloppe Spécifique Exceptionelle
B100: + ou - | C100: Transfert d'enveloppe (provenant ou vers)
B101: Moins: | C101: Mise de fonds, si applicable ici
C102: Totale de l'enveloppe maximum admissible (A) | I102: =SUM(I98:I101) -> 116103.89
C104: Coûts de construction budgétés (B) | I104: =I116 -> 107874.46
C106: Enveloppe reconnue Aménagement extérieur (minimum entre A et B) | I106: =MIN(I102,I104) -> 107874.46
B109: Stationnement | F109: =Mobilier!I3 -> 63700 | G109: =(F109*TPS)+(F109*TVQ) -> 9539.075 | H109: =(F109+G109) -> 73239.075 | I109: =ROUND(F109+(G109/2),2) -> 68469.54
B110: Aménagement paysager | F110: =Mobilier!I4 -> 8060 | G110: 1206.985 | H110: =(F110+G110) -> 9266.985 | I110: =ROUND(F110+(G110/2),2) -> 8663.49
B111: Gazonnement | F111: =Mobilier!I5 -> 13000 | G111: 1946.75 | H111: 14946.75 | I111: 13973.38
B112: Clôture | F112: =Mobilier!I6 -> 15600 | G112: 2336.1 | H112: 17936.1 | I112: 16768.05
B113: Autres (préciser) : | G113: 0 | H113: 0 | I113: 0
B114: Autres (préciser) :
B115: Autres (préciser) : | G115: 0 | H115: 0 | I115: 0
A116: Total – Aménagement extérieur | G116: =SUM(G109:G115) -> 15028.91 | H116: =SUM(H109:H115) -> 115388.91 | I116: =SUM(I109:I115) -> 107874.46
H117: Dépassement | I117: =I102-I116 -> 8229.43
A119: Honoraires Professionnels
C120: Enveloppe Honoraire Professionnels | I120: ='Calcul env. achat-construction'!B20 -> 119774.4993
B121: Plus: | C121: Enveloppe Spécifique Exceptionelle
B122: + ou - | C122: Transfert d'enveloppe (provenant ou vers)
B123: Moins: | C123: Mise de fonds, si applicable ici
C124: Totale de l'enveloppe maximum admissible (A) | I124: =SUM(I120:I123) -> 119774.4993
C126: Coûts de construction budgétés (B) | I126: =I140 -> 0
C128: Enveloppe reconnue Honoraires Professionnels (minimum entre A et B) | I128: =MIN(I124,I126) -> 0
B131: Architecte | G131: =(F131*TPS)+(F131*TVQ) -> 0 | H131: =(F131+G131) -> 0 | I131: =ROUND(F131+(G131/2),2) -> 0
B132: Ingénieur (génie civil et structure) | G132: 0 | H132: =(F132+G132) -> 0 | I132: =ROUND(F132+(G132/2),2) -> 0
B133: Ingénieur (génie mécanique et électrique) | G133: =(F133*TPS)+(F133*TVQ) -> 0 | H133: 0 | I133: 0
B134: Arpenteur | G134: 0 | H134: 0 | I134: 0
B135: Comptable | G135: 0 | H135: 0 | I135: 0
B136: Notaire, Avocat | G136: 0 | H136: 0 | I136: 0
B137: Autres (préciser) : | G137: 0 | H137: 0 | I137: 0
B138: Autres (préciser) : | G138: =(F138*TPS)+(F138*TVQ) -> 0 | H138: 0 | I138: 0
B139: Réserves pour imprévus | G139: 0 | H139: 0 | I139: 0
A140: Total – Honoraires professionnels | F140: =SUM(F131:F139) -> 0 | G140: =SUM(G131:G139) -> 0 | H140: =SUM(H131:H139) -> 0 | I140: =SUM(I131:I139) -> 0
H141: Dépassement | I141: =I124-I140 -> 119774.4993
A143: Chargé de Projet
C144: Enveloppe Chargé de Projet
B145: Plus: | C145: Enveloppe Spécifique Exceptionelle | I145: ='Calcul env. achat-construction'!B22 -> 41620.96335
B146: + ou - | C146: Transfert d'enveloppe (provenant ou vers)
B147: Moins: | C147: Mise de fonds, si applicable ici
C148: Totale de l'enveloppe maximum admissible (A) | I148: =SUM(I145:I147) -> 41620.96335
C150: Coûts de construction budgétés (B) | I150: =I156 -> 0
C152: Enveloppe reconnue Chargé de Projet (minimum entre A et B) | I152: =MIN(I148,I150) -> 0
B155: Chargé de Projet | G155: =(F155*TPS)+(F155*TVQ) -> 0 | H155: =(F155+G155) -> 0 | I155: =ROUND(F155+(G155/2),2) -> 0
A156: Total – Chargé de Projet | G156: =SUM(G155) -> 0 | H156: =SUM(H155) -> 0 | I156: =SUM(I155) -> 0
H157: Dépassement | I157: =I148-I156 -> 41620.96335
A159: Terrain
C160: Enveloppe Terrain
B161: Plus: | C161: Enveloppe Spécifique Exceptionelle
B162: + ou - | C162: Transfert d'enveloppe (provenant ou vers)
B163: Moins: | C163: Mise de fonds, si applicable ici
C164: Totale de l'enveloppe maximum admissible (A) | I164: =SUM(I160:I163) -> 0
C166: Coûts de construction budgétés (B) | I166: =I162+I163 -> 0
C168: Enveloppe reconnue Terrain (minimum entre A et B) | I168: =I164+I165 -> 0
B171: Coût d'achat du terrain 2 | G171: =(F171*TPS)+(F171*TVQ) -> 0 | H171: =(F171+G171) -> 0 | I171: =ROUND(F171+(G171/2),2) -> 0
B172: Études de sol | G172: 0 | H172: =(F172+G172) -> 0 | I172: =ROUND(F172+(G172/2),2) -> 0
B173: Certificat de localisation | G173: 0 | H173: 0 | I173: 0
B174: Nivellement du terrain | G174: 0 | H174: 0 | I174: 0
B175: Frais de déboisement | G175: 0 | H175: 0 | I175: 0
B176: Frais de démolition sur le terrain | G176: 0 | H176: 0 | I176: 0
B177: Infrastructures 3 | G177: 0 | H177: 0 | I177: 0
B178: Décontamination du terrain | F178: 0 | G178: 0 | H178: 0 | I178: 0
B179: Autres (préciser) : | C179: Bolard, 2 ponceaux, végétalisation, clôture | G179: 0 | H179: 0 | I179: 0
B180: Réserves pour imprévus | C180: Contingence 10% | G180: 0 | H180: 0 | I180: 0
A181: Total – Terrain | F181: =SUM(F171:F180) -> 0 | G181: =SUM(G171:G180) -> 0 | H181: =SUM(H171:H180) -> 0 | I181: =SUM(I171:I180) -> 0
H182: Dépassement | I182: =I164-I181 -> 0
A185: TOTAL DES COÛTS RÉELS DU PROJET | F185: =F43+F67+F87+F116+F140+F156+F181 -> 0 | G185: =G43+G67+G87+G116+G140+G156+G181 -> 29573.37875 | H185: =H43+H67+H87+H116+H140+H156+H181 -> 227058.3788 | I185: =I43+I67+I87+I116+I140+I156+I181 -> 212271.7
A187: 1 Attention! Les taux de taxation peuvent varier au cours du projet.
A188: 2 Comprend aussi le pourcentage du terrain si on achète un bâtiment.
A189: 3 Infrastructures (branchement aux services publics, fosse septique, puits artésien).
D193: Financement du Projet
A194: Nom du CPE:
F197: Coûts avant taxes | G197: Taxes (100%) 1 | H197: Total + 100 % des taxes | I197: Coûts + 50% des taxes
G199: TPS | H199: 0.05
G200: TVQ | H200: 0.09975
A203: Total de toutes les enveloppes de financement du MFA | I203: =I148+I124+I102+I77+I52+I25 -> 2086441.353
A206: Liquidités qui viennent diminuer les enveloppes de financement du MFA
B208: Indemnités de l'assurance ou d'un prog gouv. | G208: =(F208*TPS)+(F208*TVQ) -> 0 | H208: =(F208+G208) -> 0 | I208: =ROUND(F208+(G208/2),2) -> 0
B209: Produit de vente d'actifs immobiliers | G209: 0 | H209: 0 | I209: 0
B210: Liquidités investies dans le projet par le CPE | G210: 0 | H210: 0 | I210: 0
B211: Subventions d'autres organismes | G211: =(F211*TPS)+(F211*TVQ) -> 0 | H211: 0 | I211: 0
B212: Dons | G212: 0 | H212: 0 | I212: 0
B213: Financement de partenaires | G213: 0 | H213: 0 | I213: 0
A214: Total des Liquidités (Mise de fonds) | F214: =SUM(F208:F210) -> 0 | G214: =SUM(G208:G210) -> 0 | H214: =SUM(H208:H210) -> 0 | I214: =SUM(I208:I210) -> 0
A217: Liquidités qui s'ajoutent aux enveloppes de financement du MFA
B219: Subventions de d'autres organismes | G219: =(F219*TPS)+(F219*TVQ) -> 0 | H219: =(F219+G219) -> 0 | I219: =ROUND(F219+(G219/2),2) -> 0
B220: Dons | G220: 0 | H220: 0 | I220: 0
B221: Financement de partenaires | G221: 0 | H221: 0 | I221: 0
B222: Liquidité investies par le CPE (Liquidité Plus) | I222: 0
A223: Total des Liquidités Bonifiant Le Projet | F223: =SUM(F219:F222) -> 0 | G223: =SUM(G219:G222) -> 0 | H223: =SUM(H219:H222) -> 0 | I223: =SUM(I219:I222) -> 0
A228: TOTAL DU FINANCEMENT DISPONIBLE PAR LE PROGRAMME DE FINANCEMENT DES INFRASTRUCTURES | I228: =I203-I214 -> 2086441.353
A232: TOTAL DU FINANCEMENT DISPONIBLE POUR LE PROJET : | I232: =I214+I223+I228 -> 2086441.353
D235: Équilibre du budget: | G235: (Doit être à 0$ ou +) | I235: =I232-I185 -> 1874169.653

Sheet Menu déroulant (hidden)
A1: oui
A2: non
